Cogmind - Beta 17.1 @@@ ROGUE MODE // 2026.08.29 @ 16:21:17 Player: UnderDoug Result: Destroyed by Y-45 Defender with Heavy Assault Rifle Performance ------------- Evolutions (1) 500 Regions Visited (3) 600 Robots Destroyed (20) 100 Value Destroyed (632) 632 Prototype IDs (3) 60 Alien Tech Used (0) 0 Bonus (0) 0 TOTAL SCORE: 1892 Bonus ------- None Cogmind --------- Core Integrity 0/400 Matter 290/300 Energy 100/100 System Corruption 11% Temperature Cool (0) Movement Core (50) Location -9/Materials Parts ------- > --- POWER (2) -------- (None) > --- PROPULSION (3) --- Light Treads > --- UTILITY (2) ------ (None) > --- WEAPON (2) ------- Mining Claw > --- INVENTORY (5) ---- Heavy Ion Engine Utility Shielding Field Recycling Unit (0) Mining Laser Peak State ------------ > --- POWER ------------ Ion Engine Heavy Ion Engine > --- PROPULSION ------- VTOL Module VTOL Module VTOL Module > --- UTILITY ---------- Utility Shielding > --- WEAPON ----------- Light EM Pulse Cannon > --- INVENTORY -------- Field Recycling Unit Light EM Pulse Cannon Mining Laser Mining Claw [Rating: 13] Favorites ----------- Power Light Ion Engine Engine Light Ion Engine Propulsion VTOL Module Treads Light Treads Wheel Compact Wheel Flight Unit VTOL Module Utility Utility Shielding Storage Large Storage Unit Protection Utility Shielding Weapon Light EM Pulse Cannon Energy Gun EM Pulse Gun Energy Cannon Light EM Pulse Cannon Ballistic Gun Light Assault Rifle Launcher Grenade Launcher Slashing Weapon Mining Claw Build | -11 -10 -10 -9 ------- Run | Yrd Mat Min Mat Slots Evolved 2 | . . . 2 Power 1 | . . . 1 Propulsion 1 | . . . 1 Utility . | . . . . Weapon . | . . . . Parts Attached 24 | 6 9 1 8 Power 4 | 1 1 . 2 Engine 4 | 1 1 . 2 Core . | . . . . Reactor . | . . . . Propulsion 8 | 2 2 . 4 Treads 2 | . . . 2 Leg . | . . . . Wheel 2 | 2 . . . Hover . | . . . . Flight 4 | . 2 . 2 Utility 4 | 1 3 . . Device . | . . . . Storage 2 | 1 1 . . Processor . | . . . . Hackware . | . . . . Protection 2 | . 2 . . Artifact . | . . . . Weapon 8 | 2 3 1 2 Energy Gun 1 | 1 . . . Energy Cannon 3 | . 2 1 . Ballistic Gun 2 | 1 . . 1 Ballistic Cannon . | . . . . Launcher 1 | . 1 . . Special Weapon . | . . . . Impact Weapon . | . . . . Slashing Weapon 1 | . . . 1 Piercing Weapon . | . . . . Special Melee Weapon . | . . . . Unidentified Prototypes 1 | . . . 1 Corrupted Parts 2 | . . . 2 System Corruption 11 | . . . 11 Parts Lost 12 | . 2 . 10 Power 3 | . 1 . 2 Propulsion 6 | . 1 . 5 Utility . | . . . . Weapon 3 | . . . 3 Highest Loss Streak 8 | . 2 . 8 To Critical Strikes . | . . . . Average Backups 5 | 4 7 5 3 Power . | . 1 1 . Propulsion 1 | 2 3 2 . Utility . | . . . . Weapon 1 | 1 2 2 2 Tool/Special . | . . . . Unused Backups 9 | . 7 . 2 Power . | . . . . Propulsion 5 | . 5 . . Utility 1 | . . . 1 Weapon 3 | . 2 . 1 Tool/Special . | . . . . Average Slot Usage (%) 69 | . 86 71 54 Engine 10 | . 11 14 8 Wheel 8 | . 20 . . Flight 16 | . 5 28 24 Storage 4 | . 11 . . Protection 10 | . 10 14 9 Energy Gun 1 | . 4 . . Energy Cannon 6 | . 2 14 8 Ballistic Gun 5 | . 11 . . Launcher 3 | . 7 . . Slashing Weapon 1 | . . . 2 Peak Build Rating 13 | 6 10 8 13 Average Rating 7 | 4 6 8 8 On Entrance 5 | . 6 8 8 Avg Prop Armor Cover (%) . | . . . . Naked Turns . | . . . . Heaviest Build 28 | 11 28 8 10 Greatest Support 26 | 26 26 8 20 Greatest Overweight (x) 2 | . 1 . 2 Average Overweight (x) . | . . . . Largest Inventory Capacity 15 | 8 15 5 5 Average Capacity 7 | 6 12 5 5 Most Carried 10 | 6 10 5 5 Average Carried 5 | 4 7 5 3 Final Capacity 8 | 8 5 5 5 Final Carried 6 | 6 5 5 4 Class Distribution -------------------- 51% | Mutant 48% | Sprinter Dominant Class ---------------- Mutant | -10/Materials Sprinter | -10/Mines Sprinter | -9/Materials Resources | -11 -10 -10 -9 ----------- Run | Yrd Mat Min Mat Matter Collected 513 | 182 132 46 153 Remotely . | . . . . Salvage Created 774 | . 132 46 596 Parts 46 | . 7 2 37 Haulers Intercepted . | . . . . Recyclers Shooed . | . . . . Parts Field Recycled . | . . . . Retrieved Matter . | . . . . Parts Self-Destructed . | . . . . Prevented . | . . . . Parts Restored . | . . . . Kills | -11 -10 -10 -9 ------- Run | Yrd Mat Min Mat Combat Hostiles Destroyed 17 | . 3 3 11 Melee 2 | . . . 2 Guns 6 | . 3 . 3 Cannons 7 | . . 2 5 AOE 2 | . . 1 1 Classes Destroyed 6 | . 2 1 3 Builder 1 | . . . 1 Watcher 2 | . 1 . 1 Swarmer 3 | . . 3 . Grunt 9 | . 3 . 6 Brawler 1 | . . . 1 Sentry 4 | . . . 4 Best Kill Streak 5 | . 2 3 5 Combat Bots Only 4 | . 2 3 4 Max Kills in Single Turn 1 | . 1 1 1 Gunslinging . | . . . . Exploded 1 | . . 1 1 Melee 1 | . . . 1 Uniques/NPCs Destroyed . | . . . . Combat | -11 -10 -10 -9 -------- Run | Yrd Mat Min Mat Hostile Shots Fired 168 | . 22 29 117 Missed 59 | . 7 12 40 Hits 109 | . 15 17 77 Projectile 109 | . 15 17 77 Damage Taken 1356 | . 164 143 1049 Core 475 | . 32 42 401 Absorbed by Shields . | . . . . Redirected to Shielding 6 | . 6 . . Regen/Repaired (Parts) 21 | . . . 21 Core Remaining (%) 85 | 100 . 70 . Volleys Fired 74 | . 25 11 38 Largest 1 | . 1 1 1 Hottest 56 | . 56 56 56 Shots Fired 74 | . 25 11 38 Gun 36 | . 22 . 14 Cannon 38 | . 3 11 24 Launcher . | . . . . Special . | . . . . Kinetic 35 | . 21 . 14 Thermal . | . . . . Explosive . | . . . . Electromagnetic 39 | . 4 11 24 Robot Hit Streak 28 | . 3 4 28 Robot Miss Streak 2 | . 2 2 2 Penetration Max . | . . . . Secondary Targets . | . . . . Shots Hit Robots 60 | . 16 6 38 Core Hits 32 | . 9 5 18 Critical Kills . | . . . . Critical Parts Destroyed . | . . . . Critical Strikes 1 | . . . 1 Corrupt 1 | . . . 1 Melee Attacks 9 | . . . 9 Impact . | . . . . Slashing 9 | . . . 9 Piercing . | . . . . Sneak Attacks 1 | . . . 1 Combat Hostiles . | . . . . Follow-up Attacks . | . . . . Damage Inflicted 1176 | . 213 177 786 Guns 329 | . 130 . 199 Cannons 579 | . 36 131 412 Explosions 148 | . 47 46 55 Melee 120 | . . . 120 Ramming . | . . . . Kinetic 309 | . 110 . 199 Thermal 148 | . 47 46 55 Explosive . | . . . . Electromagnetic 599 | . 56 131 412 Impact . | . . . . Slashing 120 | . . . 120 Piercing . | . . . . Highest Corruption 11 | . . . 11 Average Corruption 8 | . . . 8 Corruption Purged . | . . . . Corruption Blocked . | . . . . Effects 3 | . . . 3 Message Errors 1 | . . . 1 Energy Discharges 1 | . . . 1 Data Loss (minor) 1 | . . . 1 Overload Shots . | . . . . Overflow Damage 47 | . . . 47 Projectiles . | . . . . Explosions 37 | . . . 37 Melee 10 | . . . 10 Knockbacks . | . . . . Impact . | . . . . Kinetic . | . . . . Secondary . | . . . . Self-Inflicted Damage 45 | . . . 45 Shots 1 | . . . 1 Rammed . | . . . . Targets Rammed . | . . . . Kicked . | . . . . Crushed . | . . . . Highest Temperature 147 | . 62 80 147 Average Temperature 39 | . 19 31 47 Received Heat Transfer 507 | . 90 . 417 Siege Activations . | . . . . Martial Activations . | . . . . Shielding Activations . | . . . . Robots Disrupted . | . . . . Combat Hostiles . | . . . . Robots Corrupted . | . . . . Combat Hostiles . | . . . . Parts Fried 3 | . . 1 2 Impact Corruptions . | . . . . Robots Melted . | . . . . Combat Hostiles . | . . . . Parts Melted . | . . . . Heat Transferred 50 | . . 50 . Parts Sabotaged . | . . . . Parts Stolen . | . . . . Parts Stripped . | . . . . Power Chain Reactions 3 | . 1 1 1 Alert | -11 -10 -10 -9 ------- Run | Yrd Mat Min Mat Maximum Alert Level . | . . . . Low Security (%) 100 | 100 100 100 100 Level 1 . | . . . . Level 2 . | . . . . Level 3 . | . . . . Level 4 . | . . . . Level 5 . | . . . . High Security . | . . . . Max Security . | . . . . Peak Influence 154 | . 65 100 154 Initial 31 | . . 10 31 Average 28 | . 15 67 40 Influence Increases 557 | . 103 100 354 Destroy 0b10 Robot/C 340 | . 60 60 220 Destroy 0b10 Robot/NC 15 | . 5 . 10 Destroy Leader 94 | . 12 10 72 Successful Hack 9 | . 5 . 4 Disable Machine 45 | . . 30 15 Destroy Structure 9 | . 6 . 3 Partial Spotted 15 | . . . 15 Lose Combat Pursuer 30 | . 15 . 15 Influence Decreases 403 | . 75 48 280 Entered New Map 67 | . . 18 49 Time Decay 226 | . 65 30 131 Lost Part 110 | . 10 . 100 Squads Dispatched 2 | . 1 . 1 Investigation 2 | . 1 . 1 Extermination . | . . . . Reinforcement . | . . . . Assault . | . . . . Garrison . | . . . . Intercept . | . . . . Searches Triggered . | . . . . Construction Impeded . | . . . . Haulers Reinforced . | . . . . Active Scanning Responses . | . . . . Cargo Convoy Interrupts . | . . . . Stealth | -11 -10 -10 -9 --------- Run | Yrd Mat Min Mat Distress Signals 1 | . . 1 . Communications Jammed . | . . . . Distress Signals . | . . . . Times Spotted 37 | . 6 14 17 Peak Tracking Total 20 | . 3 20 6 Tactical Retreats 2 | . 1 . 1 Traps | -11 -10 -10 -9 ------- Run | Yrd Mat Min Mat Traps Triggered . | . . . . Indirectly . | . . . . Trap Hack Attempts . | . . . . Triggered . | . . . . Disarmed 12 | . 12 . . Reprogrammed . | . . . . Reused . | . . . . Traps Extracted . | . . . . Installed . | . . . . Triggered . | . . . . Machines | -11 -10 -10 -9 ---------- Run | Yrd Mat Min Mat Machines Disabled 3 | . . 2 1 Max in Single Turn 1 | . . 1 1 Machines Repaired . | . . . . Machines Dismantled . | . . . . Machines Sabotaged . | . . . . Overloaded Fab Kills . | . . . . Hacking | -11 -10 -10 -9 --------- Run | Yrd Mat Min Mat Machines Accessed 6 | . 3 . 3 Terminals 2 | . 2 . . Fabricators . | . . . . Repair Stations 1 | . . . 1 Recycling Units 2 | . 1 . 1 Scanalyzers 1 | . . . 1 Garrison Access . | . . . . Total Hacks 22 | . 11 . 11 Successful 17 | . 9 . 8 Failed 4 | . 2 . 2 Catastrophic . | . . . . Database Lockouts 1 | . . . 1 Manual . | . . . . Terminals 8 | . 8 . . Fabricators . | . . . . Repair Stations 2 | . . . 2 Recycling Units 7 | . 3 . 4 Scanalyzers 5 | . . . 5 Garrison Access . | . . . . Terminal Hacks 6 | . 6 . . Prototype ID Bank 1 | . 1 . . Locate Traps 2 | . 2 . . Disarm Traps 3 | . 3 . . Fabricator Hacks . | . . . . Repair Station Hacks 2 | . . . 2 Scan Component 1 | . . . 1 Repair 1 | . . . 1 Recycling Unit Hacks 7 | . 3 . 4 Recycle Component 2 | . 2 . . Process 1 | . . . 1 Report Inventory 3 | . 1 . 2 Retrieve Matter 1 | . . . 1 Scanalyzer 2 | . . . 2 Retrieve Study 2 | . . . 2 Garrison Access Hacks . | . . . . Unauthorized Hacks . | . . . . Terminals . | . . . . Fabricators . | . . . . Repair Stations . | . . . . Recycling Units . | . . . . Scanalyzers . | . . . . Garrison Access . | . . . . Data Cores Recovered . | . . . . Used . | . . . . Hacking Detections 3 | . 2 . 1 Full Trace Events 2 | . 1 . 1 Feedback Events . | . . . . Feedback Blocked . | . . . . Robot Schematics Acquired . | . . . . Robots Built . | . . . . Authchips . | . . . . Time . | . . . . Total Robot Build Rating . | . . . . Part Schematics Acquired . | . . . . Parts Built . | . . . . Authchips . | . . . . Time . | . . . . Total Part Build Rating . | . . . . Part Studies Acquired 2 | . . . 2 Parts Repaired 1 | . . . 1 Time 32 | . . . 32 Parts Recycled 2 | . 2 . . Recycled Matter 12 | . . . 12 Retrieved Matter 12 | . . . 12 Retrieved Components . | . . . . Parts Scanalyzed . | . . . . Part Schematics Acquired . | . . . . Parts Damaged . | . . . . Bothacking | -11 -10 -10 -9 ------------ Run | Yrd Mat Min Mat Used RIF Installer . | . . . . Robots Hacked . | . . . . Non-combat . | . . . . Combat . | . . . . Robot Hacks Applied . | . . . . Relay Couplers Released . | . . . . Fabnet Peak Effective % . | . . . . Robots Rewired . | . . . . Allies Hacked . | . . . . Hacks Repelled . | . . . . Allies | -11 -10 -10 -9 -------- Run | Yrd Mat Min Mat Total Allies . | . . . . Largest Group . | . . . . Highest-Rated Group . | . . . . Highest-Rated Ally . | . . . . Total Orders . | . . . . Ally Attacks . | . . . . Total Damage . | . . . . Kills . | . . . . Allies Corrupted . | . . . . Allies Melted . | . . . . Intel | -11 -10 -10 -9 ------- Run | Yrd Mat Min Mat Active Infowar (turns) . | . . . . Robot Analysis Total . | . . . . Derelict Logs Recovered . | . . . . Drone Launches . | . . . . Drone Recoveries . | . . . . Exploration | -11 -10 -10 -9 ------------- Run | Yrd Mat Min Mat Turns Passed 802 | 74 311 61 356 Spaces Moved 860 | 70 281 91 418 Core 21 | 16 . . 5 Treads 2 | . . . 2 Legs . | . . . . Wheels 229 | 54 175 . . Hover . | . . . . Flight 608 | . 106 91 411 Fastest Speed 29 | 50 32 32 29 Average Speed 49 | 80 74 32 30 Slowest Speed 160 | 90 115 32 160 Overloaded Moves . | . . . . Propulsion Burnouts . | . . . . Robots Hopped 2 | . . . 2 Potential Cave-ins . | . . . . Cave-ins Triggered . | . . . . Exploration Rate (%) 26 | 3 38 28 37 Regions Visited 3 Branch Regions 1 Pre-discovered Areas . | . . . . Known Exits Taken . | . . . . Unknown Exits Taken 3 | 1 1 1 . Scrap Searched . | . . . . Spaces Dug . | . . . . Terrain Destroyed 8 | . 6 . 2 Melee . | . . . . Projectile . | . . . . AOE 8 | . 6 . 2 Terrain Rammed . | . . . . Walls Destroyed . | . . . . Machines Disabled . | . . . . Actions | -11 -10 -10 -9 --------- Run | Yrd Mat Min Mat Total 1151 | 87 366 110 588 Wait 134 | . 23 8 103 Move 853 | 69 280 90 414 Hop 2 | . . . 2 Pick Up 29 | 12 13 . 4 Fast Attach 5 | . 2 . 3 Attach 20 | 6 5 . 9 Detach 6 | . 1 . 5 Swap 6 | . 4 1 1 Drop 13 | . 13 . . Fire 74 | . 25 11 38 Melee 9 | . . . 9 Ram . | . . . . Kick . | . . . . Crush . | . . . . Escape Stasis . | . . . . Rewire . | . . . . Trap . | . . . . Miscellaneous . | . . . . Route ------- -11/Scrapyard -10/Materials -10/Mines -9/Materials History --------- Turn | Location | Event 10 | -11/Scrapyard | Discovered new exit (range 16) 75 | -11/Scrapyard | Entered Materials 302 | -10/Materials | Build established: Mutant 368 | -10/Materials | Discovered new exit (range 5) 386 | -10/Materials | Entered Mines 436 | -10/Mines | Assembled infested the area 444 | -10/Mines | Discovered new exit (range 10) 447 | -10/Mines | Entered Materials 447 | -9/Materials | Evolved 2 slots: Power x1, Propulsion x1 601 | -9/Materials | Repaired VTOL Module 681 | -9/Materials | Central database locked down 767 | -9/Materials | Core integrity fell below 50% 789 | -9/Materials | Core integrity fell below 20% 791 | -9/Materials | System corruption reached 10% 803 | -9/Materials | Destroyed by Y-45 Defender with Heavy Assault Rifle Last Messages --------------- Acquired 3 matter. K-01 Serf collects debris. Acquired 3 matter. U-05 Engineer builds a Door. Acquired 3 matter. Lgt. Treads destroyed. &1CLJ>R836FZH2ZVS&,YKNR5UJOW>42 Acquired 3 matter. Y-45 Defender destroyed. Acquired 3 matter. Sneak attack on U-05 Engineer. Destroyed Lgt. Ion Engine. U-05 Engineer destroyed. Hvy. Assault Rifle destroyed. Acquired Corrupted Lgt. Treads. Integrated Corrupted Lgt. Treads (+4). Corrupted Lgt. Treads temporarily disabled. [Achievement: Physics Hates This One Trick] G-34 Mercenary destroyed. System corrupted: Component data lost. Map ----- +----------------------------------------------------+ | ?????###### # # #??????????# # | | ??????????# #######+#########??????????######## | | ??????????# #??#########????????????? | | ??????????# %= #? #????????????? | | ??????????+ #? #????????????? | | ??????????# ####### # #????????????? | | ??????????# #?????# # #????????????? | | ??????????# #?????# + #????????????? | | ??????????# #?????# #########???????????????? | | ??????????# +?????# #???????????????????????? | | ??????????# #?????# #???????????????????????? | | ??????????# #?????# #???????????????????????? | | ??????????# #?????# #???###?????????????????? | | ??????????# #?????# #?###%######????????????? | | ??????????# #?????# #?# *[! #????????????? | | ??????????# ??????# #?# =! "" #????????????? | | ??????????# ??????# #?# """#????????????? | | ?????? ####### ### S"#????????????? | | ?????? + ] #????????????? | | ?????? ####### ### ]* #????????????? | | ????????????????????##+#### ** #????????????? | | ????????????????????# *## #????????????? | | ????????????????????# ![[## = #????????????? | | ????????????????????# %=[#######+### #??????? | | ????????????????????#=!%!Y%*%= %* ?? | | ????????????????????# !!@#%!=% ! ?? | | ????????????????????# [==g*! | ?? | | ????????????????????# =###"####### #####??? | | ????????????????????# #??^ ?????##+###??????? | | ????????????????????# #??[[[ ????????????????? | | ????????????????????######??[[ #???????????????? | | ?????????????????????????????[ #???????????????? | | ????????????????????????????? #???????????????? | | ????????????????????????????? #???????????????? | | ?????????????????????????????####???????????????? | | ????????????????????????????????????????????????? | | ????????????????????????????????????????????????? | | ????????????????????????????????????????????????? | | ????????????????????????????????????????????????? | | ????????????????????????????????????????????????? | | ????????????????????????????????????????????????? | | ????????????????????????????????????????????????? | | ????????????????????????????????????????????????? | | ????????????????????????????????????????????????? | | ????????????????????????????????????????????????? | | ????????????????????????????????????????????????? | | ????????????????????????????????????????????????? | | ????????????????????????????????????????????????? | | ????????????????????????????????????????????????? | | ????????????????????????????????????????????????? | +----------------------------------------------------+ Best States ------------- Heat Dissipation 28 Energy Generation 19 Energy Capacity 430 Matter Stores 300 Matter Capacity 300 Sight Range 16 Terrain Scan Density 10 Utility Shielding 33 Weapon Shielding 33 Evasion (%) 64 Recoil Reduction 1 Item Schematics ----------------- None Robot Schematics ------------------ None Fabricated ------------ Nothing Repaired ---------- VTOL Module | 16% | -9/Materials Studied --------- VTOL Module | -9/Materials | Hacked Lgt. EM Pulse Cannon | -9/Materials | Hacked Alien Tech Used ----------------- None Achievements -------------- A Problem For Future Me Hunted I Survived The Infestation Physics Hates This One Trick Challenges ------------ None Game ------ Seed SubdwellerHeatSink Manual? 0 Play Time 00:18:25 Cumulative 2.5 hours Start 2026.08.29 @ 16:04:19 End 2026.08.29 @ 16:21:17 Sessions 1 Manual Loads 0 Difficulty Rogue Special Mode None Game No. 3 Rogue 3 Adventurer 0 Explorer 0 Win Type - Total 0 Types 0/0/0/0/0/0/0/0/0/0 Lore% 10 Gallery% 5 Achievement% 7 Wizard Run 0 Options --------- Layout 1 ASCII 0 Keyboard 0 Movement Mouse Keybinds 0 Fullscreen 2 Font 24/X11 Map View 50x35 Zoom Use 0% Tactical HUD 0 Map Filters NONE Filters NONE Steam 1 RUN: 0e7674d2-c2fc-4b93-9460-cf7f856d19c8